[Event "26th Womens ECCC 2022"]
[Site "Mayrhofen"]
[Date "2022.10.07"]
[Round "5.13"]
[White "Rakhmangulova, Anastasiya"]
[Black "Mammadzada, Gunay"]
[Result "0-1"]
[ECO "B03"]
[WhiteElo "2261"]
[BlackElo "2483"]
[Annotator "TA"]
[PlyCount "104"]
[EventDate "2022.10.03"]
[EventType "team-tourn"]
[EventCountry "AUT"]
[SourceTitle "playchess.com"]
[Source "ChessBase"]
[SourceQuality "1"]
[TimeControl "40/5400+30:1800+30"]

{[%evp 15,104,47,59,-2,-6,-18,-12,-17,35,22,76,66,64,28,14,28,57,55,55,54,62,28,25,0,0,0,0,0,0,0,0,0,0,0,0,-64,-44,-83,5,0,0,0,0,0,0,-9,0,-12,0,-27,-33,-33,-30,-121,-101,-110,-125,-120,-64,-154,-164,-178,-200,-333,-191,-188,-147,-106,0,-186,-186,-226,-220,-255,-169,-193,-159,-358,-355,-700,-186,-375,-362,-29967,-29968,-29974,-29975,-29986,-29987,-6482,-2105]} 1. e4 {[%emt 0:00:01][%cal Be2e4,Be4e5][%mdl 32]} Nf6 {[%emt 0:00:14]} 2. e5 {[%emt 0:00:31]} Nd5 {[%emt 0:00:02]} 3. d4 {[%emt 0:00:07]} d6 {[%emt 0:00:02]} 4. c4 {[%emt 0:06:13]} Nb6 {[%emt 0:00:05]} 5. f4 {[%emt 0:00:04]} dxe5 {[%emt 0:00:47]} 6. fxe5 {[%emt 0:00:05]} Bf5 {[%emt 0:00:11]} 7. Nf3 {[%emt 0:03:53]} e6 {[%emt 0:00:29]} 8. Nc3 {[%emt 0:01:23]} Bb4 {[%emt 0:02:37]} 9. c5 {[%emt 0:07:25] B03: Alekhine's Defence: Four Pawns Attack.} (9. Bd3 $14) 9... Nd5 $11 {[%emt 0:01:55]} 10. Bd2 {[%emt 0:09:38]} O-O {[%emt 0:20:06] [#]} 11. Bc4 $146 {[%emt 0:23:54] The position is equal.} ({Predecessor:} 11. a3 Bxc3 12. bxc3 b6 13. cxb6 axb6 14. Bc4 c5 15. O-O Nc6 16. Bb5 Nce7 17. c4 {1-0 (39) Candela Perez,J (2399)-Forcen Esteban,D (2425) Gijon 2011}) 11... Nc6 {[%emt 0:22:07]} (11... b6 $11) 12. O-O $14 {[%emt 0:08:14]} Bg4 {[%emt 0:07:57]} (12... Bxc3 $11 13. bxc3 h6) 13. Nxd5 $1 $16 {[%emt 0:08:05]} exd5 {[%emt 0:00:14]} 14. Be2 {[%emt 0:00:35]} Bxd2 {[%emt 0:01:45]} 15. Qxd2 {[%emt 0:00:06]} a5 {[%emt 0:07:03]} 16. Rae1 {[%emt 0:04:01]} Qe7 {[%emt 0:03:00]} 17. Qf4 {[%emt 0:05:14]} Bh5 {[%emt 0:09:22]} 18. Bd3 {[%emt 0:00:42]} Bg6 {[%emt 0:00:35]} 19. Bxg6 {[%emt 0:01:09]} fxg6 {[%emt 0:00:01]} 20. Qg4 {[%emt 0:00:25]} Rf5 {[%emt 0:01:04] Inhibits Ng5.} 21. Nh4 {[%emt 0:03:15][%cal Bf3h4,Bh4g2,Bg2f4][%mdl 32]} Rxf1+ {[%emt 0:00:13]} 22. Rxf1 {[%emt 0:00:05]} Nd8 {[%emt 0:02:49]} 23. g3 {[%emt 0:00:35]} Ne6 {[%emt 0:00:45]} 24. Ng2 {[%emt 0:00:48]} c6 {[%emt 0:02:48]} 25. Qd1 {[%emt 0:00:45]} ({Better is} 25. Rd1 $11) 25... Rf8 $15 {[%emt 0:03:40]} 26. Nf4 {[%emt 0:02:38]} Nc7 {[%emt 0:00:53]} ({Black should try} 26... Nxf4 $17 27. Rxf4 Rxf4 28. gxf4 Qh4) 27. a4 {[%emt 0:01:49]} g5 {[%emt 0:03:11]} 28. Ne2 {[%emt 0:00:18]} Ra8 {[%emt 0:02:57]} 29. h3 {[%emt 0:04:58]} Ne6 {[%emt 0:00:48]} 30. Qd2 {[%emt 0:02:39]} h5 {[%emt 0:06:12][%cal Bh7h5,Bh5h4][%mdl 32]} 31. Kg2 {[%emt 0:00:40]} h4 {[%emt 0:00:45]} 32. g4 {[%emt 0:00:10]} b6 {[%emt 0:01:17]} 33. cxb6 {[%emt 0:01:14]} Ra6 {[%emt 0:00:03]} 34. Rf2 {[%emt 0:01:54]} (34. b3 $11 {keeps the balance.}) 34... Rxb6 $17 {[%emt 0:00:37]} 35. Qxa5 {[%emt 0:00:52]} Qb7 {[%emt 0:00:01]} 36. Qc3 {[%emt 0:02:34]} Rxb2 {[%emt 0:00:18]} ({Black should play} 36... Rb3 $1 $17 {[%cal Rb3c3]} 37. Qc2 Rxb2) 37. Qd3 {[%emt 0:00:30]} (37. Qa3 $1 $15) 37... Ra2 $1 {[%emt 0:01:06]} 38. Qg6 {[%emt 0:00:52]} Qe7 {[%emt 0:00:03][%cal Oa2e2] Active counter play!} 39. Qb1 {[%emt 0:00:31]} (39. Qd3 $142) 39... Rxa4 {[%emt 0:01:24] Dancing on a razor blade.} (39... Qa3 $142 {[%cal Oa2e2] ( -> ...Rxe2!)} 40. Qf5 Nf4+ 41. Rxf4 gxf4 42. Qe6+ Kf8 43. Qc8+ Kf7 44. Qd7+ Qe7 45. Qf5+ Kg8) 40. Qb8+ {[%emt 0:00:04]} Kh7 {[%emt 0:00:18]} 41. Qb1+ {[%emt 0:04:49]} Kg8 {[%emt 0:01:14]} (41... Kh6 $17 42. Qb8 Qd8 43. Qxd8 Nxd8) 42. Qb8+ $19 {[%emt 0:02:03]} Qd8 $1 {[%emt 0:00:36]} 43. Qb1 {[%emt 0:06:24] [#]} Qe8 $1 {[%emt 0:02:14]} ({Worse is} 43... Nxd4 44. Qd1 Nxe2 45. Qxa4 Nf4+ 46. Rxf4 gxf4 47. Qxc6 $11) 44. Qc2 {[%emt 0:03:59]} Ra3 {[%emt 0:03:01][%cal Oc6c5]} 45. Rf3 {[%emt 0:03:11]} Ra1 {[%emt 0:02:42]} ({Stronger than} 45... Rxf3 46. Kxf3 Qf7+ 47. Kg2 $17) 46. Qb2 $2 {[%emt 0:05:38] [#] Now White is beyond hope.} (46. Rf1 $17 {might work better.} Rxf1 47. Kxf1) 46... Qa8 $1 {[%emt 0:02:41] Threatens to win with ...Ra2.} 47. Rb3 $2 {[%emt 0:01:42]} (47. Qb3 Qa2 48. Qxa2 Rxa2 49. Rf2) 47... Qa4 $2 {[%emt 0:06:46]} (47... Qa6 48. Re3 Ra2 49. Qb8+ Kh7 50. Qb1+ g6) 48. Rb8+ $2 {[%emt 0:05:34]} (48. Qc2 Qa6 49. Qd3 (49. Rb8+ $2 Kf7 $19)) 48... Kh7 {[%emt 0:00:38] ...Qd1 is the strong threat.} 49. Nc3 {[%emt 0:00:03] Inhibits Qd1.} (49. Qb3 $19 Qxb3 50. Rxb3) 49... Nf4+ {[%emt 0:01:53]} 50. Kh2 {[%emt 0:00:04]} Qxd4 {[%emt 0:00:39][%csl Ga1][%cal Rd4g1]} 51. Qc2+ {[%emt 0:01:22]} g6 {[%emt 0:00:24][%csl Ga1][%cal Rd4g1]} 52. Rb7+ {[%emt 0:00:59]} Kh6 {[%emt 0:00:11] Weighted Error Value: White=0.54/Black=0.32} 0-1

[Event "26th Womens ECCC 2022"]
[Site "Mayrhofen"]
[Date "2022.10.07"]
[Round "5.14"]
[White "Fataliyeva, Ulviyya"]
[Black "Levitan, Ronit"]
[Result "1-0"]
[ECO "A06"]
[WhiteElo "2422"]
[BlackElo "2024"]
[Annotator "TA"]
[PlyCount "75"]
[EventDate "2022.10.03"]
[EventType "team-tourn"]
[EventCountry "AUT"]
[SourceTitle "playchess.com"]
[Source "ChessBase"]
[SourceQuality "1"]
[TimeControl "40/5400+30:1800+30"]

{[%evp 11,75,15,17,3,18,10,16,2,22,24,89,86,75,78,73,80,84,87,101,35,48,33,69,64,65,75,197,79,254,246,252,247,303,288,295,303,303,303,295,302,298,295,348,347,356,351,456,442,440,397,402,392,622,631,683,669,796,791,1004,1001,1001,995,881,584,541,391]} 1. Nf3 {[%emt 0:00:04]} d5 {[%emt 0:00:47]} 2. g3 {[%emt 0:00:04]} Bg4 {[%emt 0:00:37]} 3. Bg2 {[%emt 0:00:05]} c6 {[%emt 0:00:13]} 4. O-O {[%emt 0:00:14]} Nd7 {[%emt 0:00:15]} 5. d4 {[%emt 0:00:06]} Ngf6 {[%emt 0:01:07]} 6. c4 {[%emt 0:00:31]} e6 {[%emt 0:00:25]} 7. h3 {[%emt 0:00:56] D11: Slav Defence: 3 Nf3 sidelines and 3...Nf6 4 e3 Bg4.} Bh5 {[%emt 0:01:30]} 8. cxd5 {[%emt 0:00:07]} exd5 {[%emt 0:00:43]} 9. Ne5 $1 {[%emt 0:00:04][%mdl 4] The position is equal. now scores much better than the old 9.Qb3.} Bg6 {[%emt 0:06:15]} 10. Nc3 {[%emt 0:03:54]} Bd6 {[%emt 0:18:38]} (10... Nb6 $11 {keeps the balance.}) 11. f4 $1 $16 {[%emt 0:03:17] White is more active.} Be4 {[%emt 0:07:53]} 12. Nxe4 {[%emt 0:02:43]} Nxe4 {[%emt 0:00:11]} 13. Bxe4 {[%emt 0:00:50]} dxe4 {[%emt 0:00:05]} 14. Qb3 {[%emt 0:00:39][%csl Ge5,LRb7,LRf7][%cal Rb3f7]} Bxe5 {[%emt 0:02:51]} 15. fxe5 {[%emt 0:00:41]} (15. dxe5 $16 Nb6 16. Be3) 15... O-O $14 {[%emt 0:00:55] [#]} 16. Rf4 $146 {[%emt 0:09:53]} ({Predecessor:} 16. Qxb7 Nb6 17. e3 Qd5 18. b3 Rfb8 19. Qe7 Re8 20. Qd6 Qxd6 21. exd6 Nd5 22. Kf2 {1-0 (73) Grandelius,N (2651)-Gorin,L (2443) Chess.com INT 2020}) 16... Qa5 {[%emt 0:22:18]} 17. Rxe4 {[%emt 0:07:19]} Qe1+ {[%emt 0:03:41]} 18. Kg2 {[%emt 0:00:05] White now steadily converts the win.} c5 {[%emt 0:00:24]} (18... Rae8 $16) 19. Qc3 {[%emt 0:13:20]} (19. Qxb7 $18 Rad8 20. Bg5 $1 (20. Qxa7 f5 $17) 20... Qxa1 21. Bxd8 Rxd8 22. Qc7) 19... Qd1 $2 {[%emt 0:00:27] [#]} (19... Qxc3 $16 {was called for.} 20. bxc3 Rac8) 20. b3 $1 $18 {[%emt 0:00:47]} (20. dxc5 Rfe8 $14) 20... cxd4 {[%emt 0:25:00] [#]} 21. Ba3 $1 {[%emt 0:00:07]} dxc3 {[%emt 0:00:42]} 22. Rxd1 {[%emt 0:00:04]} Nb6 {[%emt 0:04:05]} 23. Bxf8 {[%emt 0:00:27]} Kxf8 {[%emt 0:00:01][%mdl 4096] Endgame KRR-KRN} 24. Re3 {[%emt 0:04:12]} Rc8 {[%emt 0:00:15]} 25. Rc1 {[%emt 0:00:47]} c2 {[%emt 0:00:50]} 26. Rd3 {[%emt 0:00:07]} Rc5 {[%emt 0:00:17]} 27. Rd2 {[%emt 0:01:19]} Rxe5 {[%emt 0:01:14]} 28. Rcxc2 {[%emt 0:00:23]} ({But not} 28. Rdxc2 g6 29. Rd2 Nd5 $18) 28... Nd5 {[%emt 0:00:20]} 29. Rc8+ {[%emt 0:00:14]} Ke7 {[%emt 0:00:10]} 30. Rb8 {[%emt 0:00:39]} b6 {[%emt 0:01:34]} 31. Rb7+ {[%emt 0:00:16]} Kf6 {[%emt 0:00:07]} (31... Ke6 $142 32. Rxa7 h5) 32. e4 {[%emt 0:00:39] White is clearly winning.} Ne7 {[%emt 0:00:38]} 33. Rd6+ {[%emt 0:00:28]} Kg5 {[%emt 0:00:22]} 34. Kf3 {[%emt 0:01:30]} f5 {[%emt 0:01:16]} 35. h4+ {[%emt 0:00:26]} Kh5 {[%emt 0:00:03]} 36. exf5 {[%emt 0:00:43]} Rxf5+ {[%emt 0:00:44]} 37. Ke4 {[%emt 0:00:23]} Rf1 {[%emt 0:00:19]} 38. Rdd7 {[%emt 0:01:08] Weighted Error Value: White=0.20 (precise) /Black=0.50} ({Weaker is} 38. g4+ Kxg4 39. Rd2 (39. Rxa7 Re1+ 40. Kd3 Rd1+ 41. Kc4 Rxd6 $11) 39... Re1+ 40. Kd3 h5 41. Rg2+ Kxh4 $18) 1-0

[Event "26th Womens ECCC 2022"]
[Site "Mayrhofen"]
[Date "2022.10.07"]
[Round "5.15"]
[White "Orian, Noga"]
[Black "Mammadova, Gulnar"]
[Result "0-1"]
[ECO "A41"]
[WhiteElo "1940"]
[BlackElo "2389"]
[Annotator "TA"]
[PlyCount "84"]
[EventDate "2022.10.03"]
[EventType "team-tourn"]
[EventCountry "AUT"]
[SourceTitle "playchess.com"]
[Source "ChessBase"]
[SourceQuality "1"]
[TimeControl "40/5400+30:1800+30"]

{[%evp 9,84,18,42,23,30,21,30,0,9,0,2,0,0,0,10,-15,-8,-16,-16,-14,0,0,-7,-5,2,-33,-29,-37,-37,-31,-28,-46,-42,-51,-49,-50,-46,-79,-77,-80,-73,-161,-156,-149,-137,-273,-270,-297,-290,-266,-271,-347,-347,-320,-320,-312,-315,-311,-287,-543,-531,-554,-554,-565,-537,-601,-588,-729,-637,-1238,-771,-1366,-1233,-1127,-1115,-4818,-4710]} 1. d4 {[%emt 0:00:03]} g6 {[%emt 0:00:11]} 2. c4 {[%emt 0:00:12]} Bg7 {[%emt 0:00:04]} 3. Nc3 {[%emt 0:00:12]} d6 {[%emt 0:00:07]} 4. h4 {[%emt 0:00:28]} e5 {[%emt 0:01:10]} 5. d5 {[%emt 0:00:29]} h5 {[%emt 0:00:19]} 6. e4 {[%emt 0:00:42] A41: 1 d4 d6: Tartakower System and Modern Defence.} a5 {[%emt 0:03:14]} 7. Be2 {[%emt 0:00:58]} Na6 {[%emt 0:00:31]} 8. Be3 {[%emt 0:04:01] [#] White has an edge.} Bd7 $146 {[%emt 0:02:52]} ({Predecessor:} 8... Bh6 9. Qd2 Bxe3 10. Qxe3 Nf6 11. O-O-O Nc5 12. f3 a4 13. Nh3 Bxh3 14. Rxh3 Qd7 {0-1 (57) Ivlev,A (2315)-Vakhidov,S (2312) Chess.com INT 2020}) 9. Qd2 {[%emt 0:02:55]} Bh6 {[%emt 0:00:16]} 10. Nf3 {[%emt 0:02:18]} Nc5 {[%emt 0:02:14]} 11. O-O-O {[%emt 0:03:44]} Qe7 {[%emt 0:03:45]} 12. Ng5 {[%emt 0:13:22]} f6 {[%emt 0:01:05]} 13. Nh3 {[%emt 0:00:10]} Bxe3 {[%emt 0:00:45]} 14. Qxe3 {[%emt 0:00:03]} Nh6 {[%emt 0:00:57]} 15. f3 {[%emt 0:04:28]} f5 {[%emt 0:02:12]} 16. Ng5 {[%emt 0:00:51]} O-O-O {[%emt 0:03:55]} 17. Rdf1 {[%emt 0:10:33]} Rdf8 {[%emt 0:02:32]} 18. Nd1 {[%emt 0:10:05]} b6 {[%emt 0:03:49]} 19. Nf2 {[%emt 0:01:48]} Nf7 {[%emt 0:02:25]} 20. Nxf7 {[%emt 0:00:25]} Rxf7 {[%emt 0:00:14]} 21. Nd3 {[%emt 0:11:24]} Nxd3+ {[%emt 0:02:21]} 22. Bxd3 {[%emt 0:00:02]} Rhf8 {[%emt 0:01:22]} 23. b3 {[%emt 0:10:51]} fxe4 {[%emt 0:04:39] Black converts the advantage convincingly.} 24. Bxe4 {[%emt 0:00:14]} Bf5 {[%emt 0:00:15]} 25. g3 {[%emt 0:04:36]} (25. Re1 $17) 25... Bxe4 $19 {[%emt 0:02:52]} 26. Qxe4 {[%emt 0:00:02]} g5 {[%emt 0:00:16][%cal Og5g4] Prevents f4.} 27. Qe2 {[%emt 0:12:18]} (27. Rh2 $17) 27... gxh4 {[%emt 0:02:44]} 28. Rxh4 {[%emt 0:00:02]} Qg5+ {[%emt 0:00:16]} 29. Kb2 {[%emt 0:02:42]} Qxg3 {[%emt 0:01:13]} 30. Qh2 {[%emt 0:01:24]} Qxh2+ {[%emt 0:02:48]} 31. Rxh2 {[%emt 0:00:03]} Rxf3 {[%emt 0:00:21]} 32. Rxf3 {[%emt 0:00:32]} Rxf3 {[%emt 0:00:04]} 33. Rxh5 {[%emt 0:00:15][%mdl 4096] Endgame KR-KR} Rf2+ {[%emt 0:00:09]} 34. Kb1 $2 {[%emt 0:00:45] [#]} (34. Ka3 {keeps fighting.}) 34... a4 $1 {[%emt 0:03:07] Black is clearly winning.} 35. Rh8+ {[%emt 0:03:50]} Kb7 {[%emt 0:00:14]} 36. bxa4 {[%emt 0:01:03]} Rf4 {[%emt 0:00:07]} 37. a5 {[%emt 0:00:32]} Rxc4 {[%emt 0:00:31]} 38. axb6 {[%emt 0:00:31]} Kxb6 {[%emt 0:00:03]} 39. Rh2 {[%emt 0:00:35]} Kc5 {[%emt 0:03:09] [#] ...e4 is the strong threat.} 40. Rd2 {[%emt 0:00:23]} e4 {[%emt 0:00:25][%cal Be5e4,Be4e3][%mdl 32] Hoping for ...e3.} 41. Kb2 {[%emt 0:30:32]} e3 {[%emt 0:30:29]} 42. Re2 {[%emt 0:00:34]} Kd4 {[%emt 0:01:23] Weighted Error Value: White=0.67/Black=0.02 (flawless)} 0-1

[Event "26th Womens ECCC 2022"]
[Site "Mayrhofen"]
[Date "2022.10.07"]
[Round "5.16"]
[White "Balajayeva, Khanim"]
[Black "Golovchanskaya, Alina"]
[Result "1-0"]
[ECO "C41"]
[WhiteElo "2384"]
[BlackElo "1684"]
[Annotator "TA"]
[PlyCount "59"]
[EventDate "2022.10.03"]
[EventType "team-tourn"]
[EventCountry "AUT"]
[SourceTitle "playchess.com"]
[Source "ChessBase"]
[SourceQuality "1"]
[TimeControl "40/5400+30:1800+30"]

{[%evp 13,58,41,48,41,39,41,73,73,66,47,115,87,84,93,163,74,79,57,62,27,72,64,79,86,87,77,455,444,723,704,927,928,914,911,897,874,2361,1584,29989,29990,29993,29991,29991,29992,29998,29999,29999]} 1. e4 {[%emt 0:00:02]} d6 {[%emt 0:00:06]} 2. d4 {[%emt 0:00:03]} e5 {[%emt 0:00:06]} 3. Nf3 {[%emt 0:00:14]} Nd7 {[%emt 0:00:13]} 4. Bc4 {[%emt 0:02:20]} Be7 {[%emt 0:00:13]} 5. Nc3 {[%emt 0:00:40]} Ngf6 {[%emt 0:00:28]} 6. O-O {[%emt 0:01:35]} c6 {[%emt 0:02:16]} 7. a4 {[%emt 0:01:33]} h6 {[%emt 0:00:25] now scores much better than the old 7...0-0.} 8. Re1 {[%emt 0:00:43] C41: Philidor Defence.} Qc7 {[%emt 0:01:23]} 9. a5 {[%emt 0:02:04] [#]} b5 $146 {[%emt 0:04:12]} ({Predecessor:} 9... Nf8 10. Be3 g5 11. d5 Ng6 12. Bf1 c5 13. a6 b6 14. Nd2 Ng4 15. Bb5+ Kf8 {1-0 (84) Caruana,F (2786)-Bortnyk,O (2604) Chess.com INT 2022}) 10. axb6 $1 {[%emt 0:02:41] White is better.} Nxb6 {[%emt 0:00:16]} 11. Bb3 {[%emt 0:01:33]} Bg4 {[%emt 0:05:19]} ({Black should try} 11... O-O $14) 12. dxe5 $16 {[%emt 0:08:14]} dxe5 {[%emt 0:01:08]} 13. h3 {[%emt 0:00:03]} Be6 {[%emt 0:04:48]} (13... Bxf3 $16 {is a better defense.} 14. Qxf3 O-O) 14. Nh4 {[%emt 0:05:30]} (14. Bxe6 $18 {is more deadly.} fxe6 15. Qe2) 14... Bxb3 {[%emt 0:05:20]} 15. cxb3 {[%emt 0:00:04]} g6 {[%emt 0:00:30] Prevents Nf5.} 16. Qf3 {[%emt 0:03:14]} Nh7 {[%emt 0:26:51] [#]} 17. Qg3 {[%emt 0:01:53][%cal Oh4g6] White is more active.} Ng5 {[%emt 0:08:16]} 18. f4 {[%emt 0:11:38]} exf4 {[%emt 0:06:40]} 19. Bxf4 {[%emt 0:00:12]} Bc5+ $2 {[%emt 0:00:10][%mdl 8192] A mistake that costs the game.} (19... Qc8 $16 {is more resistant.}) 20. Kh1 $18 {[%emt 0:04:43]} Qc8 {[%emt 0:04:18]} (20... Qd8 $142 21. Rad1 Nd7 22. Rxd7 Qxd7) 21. Bxg5 {[%emt 0:01:00] [#] Black must now prevent Qe5+.} hxg5 {[%emt 0:01:36]} 22. Qe5+ {[%emt 0:01:36]} Qe6 {[%emt 0:00:39]} 23. Qxh8+ {[%emt 0:00:12]} Kd7 {[%emt 0:09:00]} 24. Na4 {[%emt 0:01:41]} Nxa4 {[%emt 0:16:00]} 25. Qxa8 {[%emt 0:00:18] Intending Red1+ and mate.} g4 {[%emt 0:01:22]} 26. Red1+ {[%emt 0:00:26] White mates.} Kc7 {[%emt 0:00:54]} 27. Qd8+ {[%emt 0:00:13]} Kb7 {[%emt 0:00:03]} 28. Rd7+ {[%emt 0:00:06]} Ka6 {[%emt 0:00:17]} 29. Rxa4+ {[%emt 0:00:09]} Kb5 {[%emt 0:00:03]} 30. Qa5# {[%emt 0:00:07] Weighted Error Value: White=0.10 (very precise) /Black=0.91} 1-0